[Event "*** Titled Tuesday Blitz"]
[Site "Chess.com"]
[Date "2020.05.26"]
[Round "4"]
[White "lili_ani"]
[Black "ChristopherYoo"]
[Result "0-1"]
[WhiteElo "2552"]
[BlackElo "2884"]
[TimeControl "180+1"]
[EndTime "10:38:26 PDT"]
[Termination "ChristopherYoo won by checkmate"]

1. e4 {[%clk 0:03:00.9]} 1... c5 {[%clk 0:02:56]} 2. Nf3 {[%clk 0:03:00.3]} 2...
e6 {[%clk 0:02:56.7]} 3. c3 {[%clk 0:02:59.4]} 3... d5 {[%clk 0:02:52.6]} 4.
exd5 {[%clk 0:02:59]} 4... Qxd5 {[%clk 0:02:53.5]} 5. d4 {[%clk 0:02:59.3]} 5...
Nf6 {[%clk 0:02:54.1]} 6. Na3 {[%clk 0:02:58.9]} 6... Be7 {[%clk 0:02:53.8]} 7.
Be3 {[%clk 0:02:48.4]} 7... O-O {[%clk 0:02:50.8]} 8. dxc5 {[%clk 0:02:45.1]}
8... Nbd7 {[%clk 0:02:38.4]} 9. Nb5 {[%clk 0:02:19.1]} 9... Qh5 {[%clk
0:02:09.8]} 10. b4 {[%clk 0:02:06.8]} 10... Nd5 {[%clk 0:02:06.4]} 11. Bd2
{[%clk 0:01:36.6]} 11... a5 {[%clk 0:01:53.4]} 12. a3 {[%clk 0:01:15.9]} 12...
e5 {[%clk 0:01:47.6]} 13. Bc4 {[%clk 0:01:06.9]} 13... e4 {[%clk 0:01:20.5]} 14.
Nfd4 {[%clk 0:00:58.8]} 14... Qg6 {[%clk 0:01:20.5]} 15. Bxd5 {[%clk 0:00:54]}
15... Qxg2 {[%clk 0:01:20.4]} 16. Rf1 {[%clk 0:00:54]} 16... Nf6 {[%clk
0:01:12.4]} 17. Bc4 {[%clk 0:00:53.3]} 17... Bg4 {[%clk 0:01:06.3]} 18. Qc2
{[%clk 0:00:39.1]} 18... axb4 {[%clk 0:01:06.4]} 19. cxb4 {[%clk 0:00:38.9]}
19... Rfd8 {[%clk 0:01:00.9]} 20. Be3 {[%clk 0:00:38.2]} 20... Nd5 {[%clk
0:00:52.6]} 21. Bxd5 {[%clk 0:00:26.5]} 21... Rxd5 {[%clk 0:00:52.7]} 22. Nc3
{[%clk 0:00:26.1]} 22... Rxd4 {[%clk 0:00:26]} 23. Bxd4 {[%clk 0:00:24.5]} 23...
f5 {[%clk 0:00:12.5]} 24. Be3 {[%clk 0:00:18]} 24... Rd8 {[%clk 0:00:11.1]} 25.
Ne2 {[%clk 0:00:13.1]} 25... f4 {[%clk 0:00:07.7]} 26. Nxf4 {[%clk 0:00:12.8]}
26... Qxh2 {[%clk 0:00:04.6]} 27. Qc4+ {[%clk 0:00:11.4]} 27... Kh8 {[%clk
0:00:04.4]} 28. Qxe4 {[%clk 0:00:11.5]} 28... Bf6 {[%clk 0:00:04.7]} 29. Ne6
{[%clk 0:00:10.4]} 29... Bc3+ {[%clk 0:00:04.5]} 30. Bd2 {[%clk 0:00:07.8]}
30... Bxd2# {[%clk 0:00:04.7]} 0-1

[Event "*** Titled Tuesday Blitz"]
[Site "Chess.com"]
[Date "2020.05.26"]
[Round "4"]
[White "GelmanAlexander"]
[Black "vidavi"]
[Result "1-0"]
[WhiteElo "2558"]
[BlackElo "2310"]
[TimeControl "180+1"]
[EndTime "10:38:28 PDT"]
[Termination "GelmanAlexander won by resignation"]

1. c4 {[%clk 0:03:00.9]} 1... Nf6 {[%clk 0:03:00]} 2. Nf3 {[%clk 0:02:59.8]}
2... e6 {[%clk 0:03:00.2]} 3. d3 {[%clk 0:02:59.6]} 3... Be7 {[%clk 0:03:00.3]}
4. Nbd2 {[%clk 0:02:59.9]} 4... O-O {[%clk 0:03:00.5]} 5. b3 {[%clk 0:03:00.5]}
5... d5 {[%clk 0:03:00.5]} 6. Bb2 {[%clk 0:03:01]} 6... b6 {[%clk 0:03:00.5]} 7.
e3 {[%clk 0:03:01]} 7... Bb7 {[%clk 0:03:00.9]} 8. Rg1 {[%clk 0:03:01]} 8... c5
{[%clk 0:03:00.9]} 9. g4 {[%clk 0:03:01.2]} 9... Nc6 {[%clk 0:02:57.2]} 10. g5
{[%clk 0:03:01.3]} 10... Nd7 {[%clk 0:02:56.6]} 11. h4 {[%clk 0:03:01.4]} 11...
d4 {[%clk 0:02:52.1]} 12. a3 {[%clk 0:02:54.6]} 12... e5 {[%clk 0:02:49.4]} 13.
Qe2 {[%clk 0:02:53.7]} 13... Qc7 {[%clk 0:02:45.4]} 14. h5 {[%clk 0:02:50.6]}
14... Rae8 {[%clk 0:02:39.3]} 15. O-O-O {[%clk 0:02:49.6]} 15... a5 {[%clk
0:02:24.2]} 16. Bh3 {[%clk 0:02:43.5]} 16... Kh8 {[%clk 0:02:21.9]} 17. Ne4
{[%clk 0:02:43]} 17... f5 {[%clk 0:02:17.5]} 18. gxf6 {[%clk 0:02:35.4]} 18...
Nxf6 {[%clk 0:02:17.1]} 19. Neg5 {[%clk 0:02:15.3]} 19... Nd8 {[%clk 0:01:57.5]}
20. Nh4 {[%clk 0:01:49.6]} 20... Bc8 {[%clk 0:01:31]} 21. Bxc8 {[%clk
0:01:21.9]} 21... Qxc8 {[%clk 0:01:31.9]} 22. Rg2 {[%clk 0:01:15.1]} 22... Nf7
{[%clk 0:01:17.5]} 23. Nxf7+ {[%clk 0:00:53]} 23... Rxf7 {[%clk 0:01:18.4]} 24.
Ng6+ {[%clk 0:00:53.5]} 24... Kg8 {[%clk 0:01:10.7]} 25. Nxe5 {[%clk 0:00:52]}
25... Bd6 {[%clk 0:00:51.9]} 26. Nxf7 {[%clk 0:00:50.4]} 26... Kxf7 {[%clk
0:00:52.8]} 27. Rdg1 {[%clk 0:00:47.8]} 27... Bf8 {[%clk 0:00:47.3]} 28. Qf3
{[%clk 0:00:45.2]} 28... Qd7 {[%clk 0:00:44]} 29. exd4 {[%clk 0:00:41.7]} 29...
cxd4 {[%clk 0:00:43.8]} 30. Kb1 {[%clk 0:00:40.9]} 30... b5 {[%clk 0:00:41.5]}
31. Rg5 {[%clk 0:00:28.8]} 31... bxc4 {[%clk 0:00:34.6]} 32. dxc4 {[%clk
0:00:29.7]} 32... a4 {[%clk 0:00:31.8]} 33. b4 {[%clk 0:00:29.1]} 33... d3
{[%clk 0:00:19.6]} 34. h6 {[%clk 0:00:25.7]} 34... d2 {[%clk 0:00:10.4]} 35.
Rxg7+ {[%clk 0:00:24.4]} 1-0

[Event "*** Titled Tuesday Blitz"]
[Site "Chess.com"]
[Date "2020.05.26"]
[Round "4"]
[White "Indianlad"]
[Black "chito89"]
[Result "0-1"]
[WhiteElo "2974"]
[BlackElo "2751"]
[TimeControl "180+1"]
[EndTime "10:38:29 PDT"]
[Termination "chito89 won by resignation"]

1. Nf3 {[%clk 0:03:00.9]} 1... Nf6 {[%clk 0:02:45.6]} 2. c4 {[%clk 0:03:00.2]}
2... e6 {[%clk 0:02:44.5]} 3. Nc3 {[%clk 0:02:59.3]} 3... Bb4 {[%clk 0:02:43.4]}
4. Qc2 {[%clk 0:02:58.9]} 4... O-O {[%clk 0:02:38]} 5. a3 {[%clk 0:02:48.4]}
5... Bxc3 {[%clk 0:02:37.2]} 6. Qxc3 {[%clk 0:02:49.3]} 6... d6 {[%clk
0:02:37.2]} 7. e3 {[%clk 0:02:40.1]} 7... e5 {[%clk 0:02:35.5]} 8. d3 {[%clk
0:02:40]} 8... Qe7 {[%clk 0:02:08.2]} 9. b4 {[%clk 0:02:37.4]} 9... Bg4 {[%clk
0:02:03.9]} 10. Bb2 {[%clk 0:02:36.2]} 10... a5 {[%clk 0:01:58.2]} 11. b5 {[%clk
0:02:34.2]} 11... Nbd7 {[%clk 0:01:55.3]} 12. h3 {[%clk 0:02:22.7]} 12... Bxf3
{[%clk 0:01:32]} 13. gxf3 {[%clk 0:02:22.4]} 13... Nc5 {[%clk 0:01:32.8]} 14. a4
{[%clk 0:02:15.4]} 14... c6 {[%clk 0:01:21]} 15. Rg1 {[%clk 0:02:13.1]} 15...
cxb5 {[%clk 0:01:12.4]} 16. axb5 {[%clk 0:02:14]} 16... b6 {[%clk 0:01:10.3]}
17. f4 {[%clk 0:02:11.1]} 17... Nfd7 {[%clk 0:00:52.1]} 18. Bg2 {[%clk
0:02:11.2]} 18... Rac8 {[%clk 0:00:50.9]} 19. Bc6 {[%clk 0:02:06.4]} 19... f6
{[%clk 0:00:45.2]} 20. f5 {[%clk 0:02:04]} 20... Rxc6 {[%clk 0:00:42.1]} 21.
bxc6 {[%clk 0:02:03.6]} 21... Nb8 {[%clk 0:00:43]} 22. Ba3 {[%clk 0:01:57.9]}
22... Nxc6 {[%clk 0:00:40.4]} 23. Bxc5 {[%clk 0:01:58.4]} 23... dxc5 {[%clk
0:00:36.8]} 24. Ke2 {[%clk 0:01:55]} 24... Nd4+ {[%clk 0:00:34.6]} 25. Kf1
{[%clk 0:01:55.3]} 25... Nxf5 {[%clk 0:00:33.8]} 26. Rb1 {[%clk 0:01:55.8]}
26... Qd6 {[%clk 0:00:26.4]} 27. Qb3 {[%clk 0:01:51.1]} 27... Rd8 {[%clk
0:00:25.9]} 28. Ke2 {[%clk 0:01:51.6]} 28... Ne7 {[%clk 0:00:23.4]} 29. Rgd1
{[%clk 0:01:49.4]} 29... Rb8 {[%clk 0:00:19.4]} 30. Qb5 {[%clk 0:01:34.5]} 30...
Nc6 {[%clk 0:00:19.2]} 31. Qa6 {[%clk 0:01:23.2]} 31... Nb4 {[%clk 0:00:19.1]}
32. Qa7 {[%clk 0:01:23.2]} 32... Rd8 {[%clk 0:00:19.7]} 33. Qb7 {[%clk
0:01:20.4]} 33... Qe6 {[%clk 0:00:18.6]} 34. Rg1 {[%clk 0:01:14.5]} 34... Rd7
{[%clk 0:00:18.6]} 35. Qc8+ {[%clk 0:01:14.1]} 35... Kf7 {[%clk 0:00:19.2]} 36.
Rg3 {[%clk 0:00:30.1]} 36... e4 {[%clk 0:00:17.3]} 37. dxe4 {[%clk 0:00:22.8]}
37... Rd2+ {[%clk 0:00:16.6]} 0-1

[Event "*** Titled Tuesday Blitz"]
[Site "Chess.com"]
[Date "2020.05.26"]
[Round "4"]
[White "davidkalashian"]
[Black "Quaternitychess"]
[Result "0-1"]
[WhiteElo "2615"]
[BlackElo "2799"]
[TimeControl "180+1"]
[EndTime "10:38:29 PDT"]
[Termination "Quaternitychess won by resignation"]

1. e4 {[%clk 0:03:00.9]} 1... d6 {[%clk 0:02:58.8]} 2. d4 {[%clk 0:03:00.1]}
2... Nf6 {[%clk 0:02:59.7]} 3. Nc3 {[%clk 0:03:00]} 3... Nbd7 {[%clk 0:03:00.3]}
4. Nf3 {[%clk 0:02:55.1]} 4... e5 {[%clk 0:03:00.7]} 5. Bc4 {[%clk 0:02:53.8]}
5... Be7 {[%clk 0:03:01.1]} 6. O-O {[%clk 0:02:52.5]} 6... O-O {[%clk
0:03:01.6]} 7. Re1 {[%clk 0:02:51.8]} 7... c6 {[%clk 0:03:01.8]} 8. a4 {[%clk
0:02:50.9]} 8... a5 {[%clk 0:03:02.3]} 9. h3 {[%clk 0:02:50.2]} 9... Nb6 {[%clk
0:03:02]} 10. Bf1 {[%clk 0:02:45.6]} 10... exd4 {[%clk 0:03:00.9]} 11. Nxd4
{[%clk 0:02:44.6]} 11... d5 {[%clk 0:03:01.4]} 12. e5 {[%clk 0:02:40.4]} 12...
Ne8 {[%clk 0:03:01.2]} 13. Qf3 {[%clk 0:02:35.4]} 13... g6 {[%clk 0:03:00.6]}
14. Bh6 {[%clk 0:02:25.1]} 14... Ng7 {[%clk 0:03:00.3]} 15. Rad1 {[%clk
0:02:24.9]} 15... Bg5 {[%clk 0:02:58.9]} 16. Bxg7 {[%clk 0:02:15.5]} 16... Kxg7
{[%clk 0:02:58]} 17. g3 {[%clk 0:02:16]} 17... Kg8 {[%clk 0:02:56.2]} 18. Qe2
{[%clk 0:02:11.1]} 18... Bh6 {[%clk 0:02:52.4]} 19. f4 {[%clk 0:02:10.5]} 19...
Bg7 {[%clk 0:02:36.3]} 20. Qf2 {[%clk 0:02:05.6]} 20... Re8 {[%clk 0:02:36.2]}
21. g4 {[%clk 0:02:04.3]} 21... Nd7 {[%clk 0:02:09]} 22. e6 {[%clk 0:01:58.5]}
22... Bxd4 {[%clk 0:02:08.2]} 23. exf7+ {[%clk 0:01:53.7]} 23... Kxf7 {[%clk
0:02:09.1]} 24. Qxd4 {[%clk 0:01:53.3]} 24... Rxe1 {[%clk 0:02:08.9]} 25. Rxe1
{[%clk 0:01:52.7]} 25... Qb6 {[%clk 0:02:09.6]} 26. Qxb6 {[%clk 0:01:38.1]}
26... Nxb6 {[%clk 0:02:10.5]} 27. b3 {[%clk 0:01:36.5]} 27... Bd7 {[%clk
0:02:02.4]} 28. Kf2 {[%clk 0:01:36.4]} 28... Nc8 {[%clk 0:01:54.5]} 29. Bd3
{[%clk 0:01:31.4]} 29... Nd6 {[%clk 0:01:54.5]} 30. Ne2 {[%clk 0:01:31.8]} 30...
Re8 {[%clk 0:01:48.1]} 31. Nd4 {[%clk 0:01:31.7]} 31... Rxe1 {[%clk 0:01:47.9]}
32. Kxe1 {[%clk 0:01:32.6]} 32... c5 {[%clk 0:01:32.7]} 33. Nf3 {[%clk
0:01:31.4]} 33... Kf6 {[%clk 0:01:32.2]} 34. Kf2 {[%clk 0:01:28.8]} 34... d4
{[%clk 0:00:53]} 35. Ng5 {[%clk 0:01:25.6]} 35... h5 {[%clk 0:00:49.2]} 36. Kg3
{[%clk 0:01:13.8]} 36... hxg4 {[%clk 0:00:49.2]} 37. hxg4 {[%clk 0:01:14.7]}
37... Bc6 {[%clk 0:00:49.4]} 38. Nh7+ {[%clk 0:01:07.2]} 38... Kg7 {[%clk
0:00:44.1]} 39. Ng5 {[%clk 0:01:07.6]} 39... Bd5 {[%clk 0:00:43.7]} 40. Nf3
{[%clk 0:01:03.5]} 40... Kf6 {[%clk 0:00:42.7]} 41. Ne5 {[%clk 0:01:01.7]} 41...
Ne4+ {[%clk 0:00:42.5]} 42. Bxe4 {[%clk 0:00:50]} 42... Bxe4 {[%clk 0:00:42.5]}
43. Nd7+ {[%clk 0:00:50.1]} 43... Ke7 {[%clk 0:00:42.3]} 44. Nxc5 {[%clk
0:00:44.5]} 44... Bxc2 {[%clk 0:00:42.9]} 45. Kf3 {[%clk 0:00:20.5]} 45... b6
{[%clk 0:00:43]} 46. Nd3 {[%clk 0:00:20.8]} 46... Bxd3 {[%clk 0:00:42.3]} 0-1

[Event "*** Titled Tuesday Blitz"]
[Site "Chess.com"]
[Date "2020.05.26"]
[Round "4"]
[White "SlavenPastar"]
[Black "PKCLUB"]
[Result "0-1"]
[WhiteElo "2392"]
[BlackElo "2619"]
[TimeControl "180+1"]
[EndTime "10:38:30 PDT"]
[Termination "PKCLUB won by resignation"]

1. d4 {[%clk 0:03:00.9]} 1... Nf6 {[%clk 0:02:58.4]} 2. c4 {[%clk 0:03:00.7]}
2... e6 {[%clk 0:02:58.6]} 3. Nc3 {[%clk 0:03:00.2]} 3... Bb4 {[%clk 0:02:57.8]}
4. e3 {[%clk 0:03:00.6]} 4... O-O {[%clk 0:02:56.5]} 5. Bd3 {[%clk 0:03:00]}
5... d5 {[%clk 0:02:56.5]} 6. cxd5 {[%clk 0:03:00.1]} 6... exd5 {[%clk
0:02:54.7]} 7. Ne2 {[%clk 0:02:58]} 7... Re8 {[%clk 0:02:53.3]} 8. O-O {[%clk
0:02:57.7]} 8... Nbd7 {[%clk 0:02:47.9]} 9. Bd2 {[%clk 0:02:57.8]} 9... a6
{[%clk 0:02:39]} 10. Rc1 {[%clk 0:02:57.3]} 10... Bd6 {[%clk 0:02:38.2]} 11. f3
{[%clk 0:02:56.4]} 11... c5 {[%clk 0:02:37.3]} 12. Qe1 {[%clk 0:02:53.1]} 12...
b5 {[%clk 0:02:34]} 13. a3 {[%clk 0:02:46.9]} 13... Rb8 {[%clk 0:02:23.2]} 14.
Qf2 {[%clk 0:02:44.6]} 14... cxd4 {[%clk 0:02:05.1]} 15. exd4 {[%clk 0:02:43.2]}
15... Nb6 {[%clk 0:02:03.2]} 16. Bg5 {[%clk 0:02:37.7]} 16... h6 {[%clk
0:02:02.7]} 17. Bf4 {[%clk 0:02:05.2]} 17... Nc4 {[%clk 0:02:01.2]} 18. Bxd6
{[%clk 0:01:43.1]} 18... Qxd6 {[%clk 0:01:59.2]} 19. Ng3 {[%clk 0:01:42.5]}
19... Bd7 {[%clk 0:01:50.2]} 20. Rfe1 {[%clk 0:01:30.5]} 20... Rxe1+ {[%clk
0:01:33.3]} 21. Rxe1 {[%clk 0:01:31.4]} 21... b4 {[%clk 0:01:26.9]} 22. axb4
{[%clk 0:01:20.6]} 22... Qxb4 {[%clk 0:01:27]} 23. Bxc4 {[%clk 0:01:09]} 23...
dxc4 {[%clk 0:01:26.1]} 24. Re2 {[%clk 0:01:03.6]} 24... a5 {[%clk 0:01:11.6]}
25. Nge4 {[%clk 0:01:02.6]} 25... Nxe4 {[%clk 0:01:09.4]} 26. fxe4 {[%clk
0:01:03.5]} 26... a4 {[%clk 0:01:07.7]} 27. Qg3 {[%clk 0:00:47.7]} 27... a3
{[%clk 0:00:59.9]} 28. bxa3 {[%clk 0:00:45.3]} 28... Qb6 {[%clk 0:00:57.2]} 29.
Rd2 {[%clk 0:00:38.3]} 29... Ra8 {[%clk 0:00:54.2]} 30. Nd5 {[%clk 0:00:07.6]}
30... Qb1+ {[%clk 0:00:50.8]} 31. Kf2 {[%clk 0:00:07.1]} 31... Kh8 {[%clk
0:00:50.8]} 32. Qe3 {[%clk 0:00:06]} 32... Bc6 {[%clk 0:00:47.2]} 33. h3 {[%clk
0:00:04.4]} 33... Re8 {[%clk 0:00:43.4]} 34. Nc3 {[%clk 0:00:03.3]} 34... Qa1
{[%clk 0:00:43.4]} 35. d5 {[%clk 0:00:03.8]} 35... Bd7 {[%clk 0:00:43.1]} 36.
Ne2 {[%clk 0:00:02.1]} 36... f5 {[%clk 0:00:40.3]} 37. e5 {[%clk 0:00:01.9]}
37... Rxe5 {[%clk 0:00:39]} 38. Qxe5 {[%clk 0:00:02]} 38... Qxe5 {[%clk
0:00:38]} 0-1

[Event "*** Titled Tuesday Blitz"]
[Site "Chess.com"]
[Date "2020.05.26"]
[Round "4"]
[White "HrvojeZagreb"]
[Black "51616516516"]
[Result "0-1"]
[WhiteElo "2166"]
[BlackElo "2349"]
[TimeControl "180+1"]
[EndTime "10:38:30 PDT"]
[Termination "51616516516 won by checkmate"]

1. d4 {[%clk 0:03:00.9]} 1... Nf6 {[%clk 0:02:59.4]} 2. Bf4 {[%clk 0:03:00.6]}
2... g6 {[%clk 0:02:59.4]} 3. Nc3 {[%clk 0:03:00.1]} 3... d5 {[%clk 0:02:57.6]}
4. e3 {[%clk 0:03:00.2]} 4... Bg7 {[%clk 0:02:58]} 5. h4 {[%clk 0:03:00.3]} 5...
h5 {[%clk 0:02:57.7]} 6. Nf3 {[%clk 0:02:57.1]} 6... Bg4 {[%clk 0:02:56.9]} 7.
Qd2 {[%clk 0:02:57.2]} 7... Bxf3 {[%clk 0:02:56.4]} 8. gxf3 {[%clk 0:02:58.1]}
8... c6 {[%clk 0:02:54.9]} 9. O-O-O {[%clk 0:02:57.5]} 9... b5 {[%clk 0:02:55]}
10. a3 {[%clk 0:02:36.7]} 10... a5 {[%clk 0:02:51.9]} 11. Re1 {[%clk 0:02:29.2]}
11... Nbd7 {[%clk 0:02:46.6]} 12. e4 {[%clk 0:02:28.4]} 12... dxe4 {[%clk
0:02:44.6]} 13. fxe4 {[%clk 0:02:27.9]} 13... Nb6 {[%clk 0:02:43.4]} 14. e5
{[%clk 0:01:48.9]} 14... Nfd5 {[%clk 0:02:40.4]} 15. Nxd5 {[%clk 0:01:48]} 15...
Nxd5 {[%clk 0:02:38.2]} 16. Bg5 {[%clk 0:01:38.6]} 16... Qb6 {[%clk 0:02:29]}
17. e6 {[%clk 0:01:35.2]} 17... f5 {[%clk 0:02:28.3]} 18. Be3 {[%clk 0:01:24.2]}
18... f4 {[%clk 0:02:24.2]} 19. Bxf4 {[%clk 0:01:22.2]} 19... Nxf4 {[%clk
0:02:24.2]} 20. Kb1 {[%clk 0:01:15.2]} 20... Rf8 {[%clk 0:01:57.6]} 21. Re4
{[%clk 0:01:06.8]} 21... Qc7 {[%clk 0:01:37.5]} 22. d5 {[%clk 0:00:57.3]} 22...
Nxd5 {[%clk 0:01:32.4]} 23. Bxb5 {[%clk 0:00:56.8]} 23... Rb8 {[%clk 0:01:15.9]}
24. c4 {[%clk 0:00:13.4]} 24... Nc3+ {[%clk 0:01:02.7]} 25. bxc3 {[%clk
0:00:12.3]} 25... cxb5 {[%clk 0:01:02.9]} 26. c5 {[%clk 0:00:09]} 26... Qc6
{[%clk 0:00:31.5]} 27. Rhe1 {[%clk 0:00:03.3]} 27... Rd8 {[%clk 0:00:27.3]} 28.
Qg5 {[%clk 0:00:03.4]} 28... Rf6 {[%clk 0:00:27.7]} 29. Re5 {[%clk 0:00:02.9]}
29... Qf3 {[%clk 0:00:21.6]} 30. R1e2 {[%clk 0:00:01.2]} 30... Qxc3 {[%clk
0:00:19.3]} 31. f4 {[%clk 0:00:01.3]} 31... Rd1+ {[%clk 0:00:15.7]} 32. Ka2
{[%clk 0:00:01.6]} 32... Ra1# {[%clk 0:00:15.2]} 0-1

[Event "*** Titled Tuesday Blitz"]
[Site "Chess.com"]
[Date "2020.05.26"]
[Round "4"]
[White "Chessmasterzt"]
[Black "Quattroporte300"]
[Result "1-0"]
[WhiteElo "2578"]
[BlackElo "2311"]
[TimeControl "180+1"]
[EndTime "10:38:32 PDT"]
[Termination "Chessmasterzt won by resignation"]

1. Nf3 {[%clk 0:03:00.9]} 1... Nf6 {[%clk 0:02:59.5]} 2. g3 {[%clk 0:02:54.4]}
2... d5 {[%clk 0:02:58.2]} 3. Bg2 {[%clk 0:02:55.3]} 3... e6 {[%clk 0:02:54.4]}
4. O-O {[%clk 0:02:53.9]} 4... Nbd7 {[%clk 0:02:54.1]} 5. b3 {[%clk 0:02:52]}
5... c5 {[%clk 0:02:53]} 6. c4 {[%clk 0:02:49.4]} 6... d4 {[%clk 0:02:45.3]} 7.
b4 {[%clk 0:02:32.1]} 7... Rb8 {[%clk 0:02:22]} 8. d3 {[%clk 0:02:23.9]} 8... b6
{[%clk 0:02:19.9]} 9. Bf4 {[%clk 0:02:22.1]} 9... cxb4 {[%clk 0:01:58]} 10. Bxb8
{[%clk 0:02:11.8]} 10... Nxb8 {[%clk 0:01:57.8]} 11. a3 {[%clk 0:02:12.2]} 11...
a5 {[%clk 0:01:53.3]} 12. e3 {[%clk 0:01:29.9]} 12... dxe3 {[%clk 0:01:51.5]}
13. fxe3 {[%clk 0:01:30.8]} 13... Be7 {[%clk 0:01:42.8]} 14. axb4 {[%clk
0:01:26.6]} 14... Bxb4 {[%clk 0:01:36.5]} 15. d4 {[%clk 0:01:26.9]} 15... O-O
{[%clk 0:01:36.7]} 16. Qb3 {[%clk 0:01:27.2]} 16... Bb7 {[%clk 0:01:13.4]} 17.
Nc3 {[%clk 0:01:26.3]} 17... Nbd7 {[%clk 0:01:12.1]} 18. Rad1 {[%clk 0:01:19.9]}
18... Qa8 {[%clk 0:01:10.7]} 19. Nb5 {[%clk 0:01:16.2]} 19... Rc8 {[%clk
0:01:07.5]} 20. Rc1 {[%clk 0:00:50.7]} 20... Be4 {[%clk 0:00:51.8]} 21. Qb2
{[%clk 0:00:31.5]} 21... Ng4 {[%clk 0:00:46.5]} 22. Qe2 {[%clk 0:00:28.5]} 22...
f5 {[%clk 0:00:37.8]} 23. Nh4 {[%clk 0:00:15.7]} 23... Ndf6 {[%clk 0:00:30.6]}
24. Bxe4 {[%clk 0:00:10.4]} 24... Nxe4 {[%clk 0:00:29.6]} 25. Ng2 {[%clk
0:00:08]} 25... a4 {[%clk 0:00:18.2]} 26. Rc2 {[%clk 0:00:08]} 26... a3 {[%clk
0:00:17.5]} 27. Nf4 {[%clk 0:00:08.4]} 27... Qc6 {[%clk 0:00:15.5]} 28. d5
{[%clk 0:00:08.7]} 28... exd5 {[%clk 0:00:14.8]} 29. Nxd5 {[%clk 0:00:09.3]}
29... Bf8 {[%clk 0:00:13]} 30. Rxf5 {[%clk 0:00:07.5]} 30... g6 {[%clk 0:00:12]}
31. Qxg4 {[%clk 0:00:06.9]} 31... Qe6 {[%clk 0:00:09.4]} 32. Rxf8+ {[%clk
0:00:05.7]} 1-0

[Event "*** Titled Tuesday Blitz"]
[Site "Chess.com"]
[Date "2020.05.26"]
[Round "4"]
[White "Denis_Palkovich"]
[Black "Jungle_Jaguar"]
[Result "0-1"]
[WhiteElo "2312"]
[BlackElo "2584"]
[TimeControl "180+1"]
[EndTime "10:38:33 PDT"]
[Termination "Jungle_Jaguar won by resignation"]

1. d4 {[%clk 0:03:00.9]} 1... Nf6 {[%clk 0:03:00.2]} 2. Bf4 {[%clk 0:03:00.6]}
2... g6 {[%clk 0:02:58.5]} 3. e3 {[%clk 0:03:01]} 3... Bg7 {[%clk 0:02:59]} 4.
Nf3 {[%clk 0:03:00.9]} 4... d6 {[%clk 0:02:59.6]} 5. Be2 {[%clk 0:03:00.9]} 5...
O-O {[%clk 0:03:00.2]} 6. h3 {[%clk 0:03:01.1]} 6... Nbd7 {[%clk 0:03:00.9]} 7.
O-O {[%clk 0:03:00.8]} 7... Qe8 {[%clk 0:03:01.1]} 8. c4 {[%clk 0:02:59.8]} 8...
e5 {[%clk 0:03:01.4]} 9. Bh2 {[%clk 0:02:58.2]} 9... b6 {[%clk 0:02:57]} 10. Nc3
{[%clk 0:02:57.7]} 10... Bb7 {[%clk 0:02:57.1]} 11. Rc1 {[%clk 0:02:51.4]} 11...
Rd8 {[%clk 0:02:55.6]} 12. Re1 {[%clk 0:02:41.7]} 12... a6 {[%clk 0:02:54.7]}
13. b4 {[%clk 0:02:41.2]} 13... c5 {[%clk 0:02:51.6]} 14. bxc5 {[%clk
0:02:26.6]} 14... dxc5 {[%clk 0:02:49.7]} 15. Nxe5 {[%clk 0:02:13.4]} 15... Nxe5
{[%clk 0:02:33.8]} 16. Bxe5 {[%clk 0:02:13.2]} 16... Qe6 {[%clk 0:02:11]} 17.
Qb3 {[%clk 0:02:02.7]} 17... Rfe8 {[%clk 0:01:50.3]} 18. Na4 {[%clk 0:02:01.5]}
18... cxd4 {[%clk 0:01:31.6]} 19. Bxd4 {[%clk 0:01:38.2]} 19... Qf5 {[%clk
0:01:14.8]} 20. Qxb6 {[%clk 0:01:26.8]} 20... Ba8 {[%clk 0:00:50.2]} 21. Qc5
{[%clk 0:01:07.9]} 21... Qe6 {[%clk 0:00:44.5]} 22. Nb6 {[%clk 0:01:00.1]} 22...
Ne4 {[%clk 0:00:40.2]} 23. Qc7 {[%clk 0:00:36.5]} 23... Rxd4 {[%clk 0:00:40.1]}
24. exd4 {[%clk 0:00:28.5]} 24... Bxd4 {[%clk 0:00:40.1]} 25. Nxa8 {[%clk
0:00:18.6]} 25... Bxf2+ {[%clk 0:00:39.8]} 26. Kh1 {[%clk 0:00:18.5]} 26... Ng3+
{[%clk 0:00:13.8]} 27. Kh2 {[%clk 0:00:18.1]} 27... Nxe2 {[%clk 0:00:14.1]} 28.
Rxe2 {[%clk 0:00:15.6]} 28... Qxe2 {[%clk 0:00:14.2]} 29. Qf4 {[%clk 0:00:14]}
29... Be3 {[%clk 0:00:12.7]} 30. Qf3 {[%clk 0:00:11.4]} 30... Qxf3 {[%clk
0:00:12.7]} 31. gxf3 {[%clk 0:00:11.3]} 31... Bxc1 {[%clk 0:00:12.9]} 32. Nc7
{[%clk 0:00:11.8]} 32... Re2+ {[%clk 0:00:13.5]} 33. Kg3 {[%clk 0:00:11.4]}
33... Rc2 {[%clk 0:00:14.2]} 34. Nd5 {[%clk 0:00:10.6]} 34... Rxc4 {[%clk
0:00:14.1]} 0-1